bitfinex/quotes_ETHUSD_20240621
["timestamp","ask_amount","ask_price","bid_price","bid_amount"]
[1718955884610,3.005,3505.8,3505.2,0.02547353]
[1718955884765,3.005,3505.8,3503.8,2.32]
[1718955884766,3.005,3505.6,3503.8,2.32]
[1718955884962,3.005,3505.6,3503.2,7.37]
[1718955884963,3.005,3505.4,3503.4,2.32]
[1718955885175,3.005,3505.2,3503.5,0.969]
[1718955885410,3.005,3505.0,3503.4,2.32]
[1718955885615,3.005,3504.8,3503.0,2.112]
[1718955885790,1.36169007,3503.2,3503.0,2.112]
[1718955885976,5.08001683,3504.7,3503.1,0.458]
[1718955885977,1.36169007,3503.3,3503.1,0.458]
[1718955886169,1.36169007,3503.4,3503.1,0.458]
[1718955886683,3.005,3504.7,3503.1,0.458]
[1718955886684,1.36169007,3503.3,3503.1,0.458]
[1718955886909,0.93636,3504.6,3503.2,2.369]
[1718955887201,2.07581849,3504.5,3503.8,2.112]
[1718955887410,2.3642,3505.4,3503.8,2.112]
[1718955887411,4.49422536,3504.4,3503.8,2.112]
[1718955887567,0.49422536,3504.3,3503.8,2.112]
[1718955887773,0.49420798,3504.2,3503.8,2.112]
[1718955887988,0.49420798,3504.1,3503.8,2.3232]
[1718955888274,0.49420798,3504.0,3503.8,2.3232]
[1718955888494,0.49420895,3503.9,3503.8,2.3232]
[1718955888696,0.47370895,3503.9,3503.8,2.3232]
[1718955890083,0.47370895,3503.9,3503.8,4.717]
[1718955890397,3.005,3505.3,3503.8,3.0]
[1718955890572,2.3642,3505.4,3503.7,2.112]
[1718955890573,3.005,3505.1,3503.7,2.112]
[1718955890790,2.07558441,3505.0,3503.7,2.112]
[1718955890977,2.07558441,3505.0,3503.8,0.2112]
[1718955891206,1.36166654,3503.9,3503.8,0.2112]
[1718955891582,1.36166654,3504.0,3503.8,0.2112]
[1718955891774,1.36166654,3504.0,3503.9,2.71422]
[1718955891971,1.36166654,3504.0,3503.9,5.71422]
[1718955892587,3.005,3505.2,3503.9,3.0]
[1718955892786,2.3642,3505.4,3503.4,2.112]
[1718955892787,3.005,3505.0,3503.4,2.112]
[1718955892996,1.36159196,3503.7,3503.4,2.112]
[1718955893197,5.2918,3504.4,3503.5,1.2739]
[1718955893395,5.2918,3504.4,3503.2,3.0]
[1718955893396,2.07594659,3504.3,3503.2,3.0]
[1718955893583,2.07594659,3504.3,3503.1,2.2517]
[1718955893584,1.36151945,3503.3,3503.1,2.2517]
[1718955894776,1.36151945,3503.4,3503.1,2.2517]
[1718955894978,1.36151945,3503.5,3503.1,2.2517]
[1718955895391,1.36151945,3503.5,3503.4,2.112]
[1718955895990,1.36151945,3503.6,3503.4,2.112]
[1718955896595,2.3109,3504.8,3503.4,2.112]
[1718955896918,1.36161503,3503.6,3503.4,9.482]
[1718955897147,2.3109,3504.8,3503.5,4.2482]
[1718955897356,1.36164133,3503.6,3503.5,8.6182]
[1718955897635,1.36164133,3503.6,3503.5,1.2482]
[1718955897842,1.36164133,3503.6,3503.5,3.0]
[1718955898137,5.3159,3504.8,3503.5,3.0]
[1718955898336,2.07588889,3504.7,3503.5,7.37]
[1718955898541,2.07588889,3504.7,3503.6,3.0]
[1718955898747,0.49425698,3504.6,3503.6,3.0]
[1718955898906,2.57014587,3504.5,3503.6,3.0]
[1718955899258,2.57014587,3504.4,3503.6,3.0]
[1718955899402,2.07588889,3504.3,3503.6,3.0]
[1718955899598,0.49425698,3504.2,3503.7,4.5766]
[1718955899825,0.49425698,3504.2,3503.8,3.0]
[1718955900042,0.49425698,3504.1,3503.8,3.0]
[1718955900238,0.49425698,3505.0,3503.9,0.75766]
[1718955900444,6.11285957,3506.3,3504.2,2.112]
[1718955900445,2.56996121,3504.9,3504.2,2.112]
[1718955900640,2.56996121,3504.8,3504.2,2.112]
[1718955900941,2.56996121,3504.7,3504.2,2.112]
[1718955901140,2.56996121,3504.6,3504.2,2.112]
[1718955901441,2.56996121,3504.5,3503.8,3.0]
[1718955901741,2.56996121,3504.4,3503.9,0.54646]
[1718955901941,3.005,3505.3,3503.8,3.0]
[1718955901942,2.56996121,3504.3,3503.8,3.0]
[1718955902102,2.07570423,3504.2,3503.6,3.0]
[1718955902308,1.36133899,3503.7,3503.6,3.0]
[1718955902537,0.49424887,3503.7,3503.6,3.0]
[1718955902717,0.49424887,3504.5,3503.2,3.0]
[1718955903055,1.36102714,3503.6,3503.2,3.0]
[1718955903358,1.36102714,3503.7,3503.2,3.0]
[1718955903546,1.36102714,3503.7,3503.5,2.112]
[1718955903703,1.36102714,3503.9,3503.5,2.112]
[1718955903904,1.36102714,3503.9,3503.6,0.2112]
[1718955904732,5.3206,3505.1,3503.6,0.2112]
[1718955904733,1.36102714,3504.0,3503.6,0.2112]
[1718955905377,1.36011006,3504.0,3503.6,0.2112]
[1718955905522,0.49419706,3503.9,3503.6,0.2112]
[1718955905723,1.36010663,3504.0,3503.6,0.2112]
[1718955905954,1.36010663,3504.0,3503.5,2.112]
[1718955905955,0.49420287,3503.9,3503.7,0.23232]
[1718955906114,2.72020925,3504.0,3503.7,0.23232]
[1718955906318,0.49420287,3503.9,3503.7,0.23232]
[1718955906519,0.4942109,3503.9,3503.7,0.23232]
[1718955906823,1.85433267,3503.9,3503.7,0.23232]
[1718955907460,0.4942109,3503.9,3503.7,0.23232]
[1718955908658,1.36014016,3503.8,3503.7,0.23232]
[1718955908861,0.49423314,3503.9,3503.7,0.23232]
[1718955908862,1.8543733,3503.9,3503.7,0.23232]
[1718955910265,1.8543733,3503.8,3503.6,2.112]
[1718955910435,0.49423314,3503.9,3503.6,2.112]
[1718955910777,0.49423314,3503.9,3502.7,0.1189747]
[1718955910778,4.50277165,3503.8,3502.7,0.1189747]
[1718955910978,2.57020479,3503.7,3502.7,0.1189747]
[1718955911125,2.57020479,3503.6,3502.7,0.1189747]
[1718955911337,2.57567213,3503.5,3502.7,0.1189747]
[1718955911526,2.07597165,3503.4,3502.7,0.1189747]
[1718955911835,0.49440392,3503.3,3502.7,0.1189747]
[1718955912036,2.07597165,3503.2,3502.7,0.1189747]
[1718955912346,0.49440392,3503.1,3502.7,0.1189747]
[1718955912538,2.07597165,3503.0,3502.7,0.1189747]
[1718955912733,0.49440392,3502.9,3502.7,0.1189747]
[1718955913159,0.49440392,3503.4,3502.7,0.1189747]
[1718955913347,2.07646149,3503.3,3502.7,0.1189747]
[1718955913552,0.49440392,3503.2,3502.7,0.1189747]
[1718955913765,2.07646149,3503.1,3502.7,0.1189747]
[1718955914064,0.49440392,3503.0,3502.7,0.34207217]
[1718955914221,1.85426774,3503.1,3502.7,0.1189747]
[1718955914426,1.35976985,3502.8,3502.7,0.1189747]
[1718955914993,3.62165637,3502.8,3502.7,0.1189747]
[1718955915130,3.93066778,3502.8,3502.7,0.1189747]
[1718955915333,3.93070021,3502.8,3502.7,0.1189747]
[1718955916699,6.38250021,3502.8,3502.7,0.1189747]
[1718955916894,4.3059972,3502.8,3502.7,0.1189747]
[1718955917044,10.38287165,3502.8,3502.7,0.1189747]
[1718955917250,11.77109777,3502.8,3502.7,0.1189747]
[1718955917486,11.27667042,3502.8,3502.7,0.1189747]
[1718955917698,11.77119524,3502.8,3502.7,0.1189747]
[1718955918292,11.77119524,3502.8,3500.4,2.4804]
[1718955918501,1.35850615,3500.9,3500.4,2.4804]
[1718955918654,1.35850615,3501.0,3500.5,0.24804]
[1718955918853,1.35850615,3501.2,3500.6,2.112]
[1718955919310,1.35850615,3501.4,3500.5,0.24804]
[1718955920002,1.35850615,3501.5,3500.2,5.1544]
[1718955920164,1.35850615,3501.3,3500.2,5.1544]
[1718955920577,2.07777116,3501.2,3500.2,5.1544]
[1718955920784,1.85308832,3501.2,3500.2,5.1544]
[1718955920987,0.4947099,3501.2,3500.2,5.1544]
[1718955921180,1.35837201,3501.3,3500.3,0.81544]
[1718955921380,1.35837201,3501.3,3500.3,3.81544]
[1718955923491,1.35837201,3501.3,3500.3,3.0]
[1718955926620,1.35837201,3501.3,3500.3,5.2855]
[1718955926911,1.35837201,3501.3,3500.8,2.825]
[1718955927211,1.35837201,3501.3,3500.9,3.0]
[1718955928385,1.35837201,3501.3,3500.4,3.0]
[1718955928587,1.35837201,3501.3,3500.4,4.25244]
[1718955930291,1.35837201,3501.3,3500.4,6.53787]
[1718955930618,1.35837201,3501.3,3500.5,2.28537]
[1718955930917,1.35837201,3501.3,3500.6,2.28529]
[1718955931116,1.35837201,3501.3,3500.7,0.33054045]
[1718955931415,1.35837201,3501.3,3500.8,2.825]
[1718955931620,1.35837201,3501.3,3500.9,3.0]
[1718955933289,1.35837201,3501.3,3500.7,0.33054045]
[1718955933497,1.35837201,3501.3,3500.4,3.0]
[1718955934699,5.4671,3502.5,3500.4,3.0]
[1718955935001,5.08229716,3502.4,3500.4,5.28543]
[1718955935184,2.07729716,3502.3,3500.4,5.28543]
[1718955935515,0.75443972,3502.2,3500.5,1.272541]
[1718955938633,3.005,3501.9,3500.4,3.0]
[1718955938934,2.07729012,3501.8,3500.2,3.0]
[1718955939725,2.07729012,3501.8,3500.4,2.119]
[1718955939925,0.74748901,3501.7,3500.4,5.119]
[1718955941508,2.3926,3502.0,3500.4,5.119]
[1718955941712,2.07751477,3501.9,3500.4,5.119]
[1718955944097,2.07751477,3501.9,3500.4,3.0]
[1718955944426,5.08251477,3501.9,3500.2,3.0]
[1718955944595,2.2689,3501.7,3500.2,3.0]
[1718955944796,2.07751477,3501.6,3500.2,5.119]
[1718955946238,2.07751477,3501.6,3500.2,3.0]
[1718955947362,2.2689,3501.7,3500.2,3.0]
[1718955947512,2.67975351,3501.6,3500.2,3.0]
[1718955947712,2.0776732,3501.5,3500.2,3.0]
[1718955947930,1.35753173,3500.3,3500.2,5.119]
[1718955948104,0.49470396,3501.4,3500.2,5.119]
[1718955948305,1.357549,3500.3,3500.2,2.119]
[1718955948650,0.60214115,3501.6,3500.2,2.119]
[1718955948651,1.357549,3500.5,3500.2,2.119]
[1718955948939,1.357549,3500.4,3500.2,2.119]
[1718955949105,1.357549,3500.3,3500.2,2.119]
[1718955949303,0.49465292,3500.3,3500.2,2.119]
[1718955949539,1.357549,3500.3,3500.2,2.119]
[1718955949706,1.357549,3500.4,3500.2,2.9309]
[1718955949898,1.357549,3500.4,3500.3,3.0]
[1718955950099,0.49466553,3500.9,3500.3,3.0]
[1718955950337,1.35745026,3500.4,3500.3,3.0]
[1718955950544,1.85212473,3500.4,3500.3,3.77108045]
[1718955950727,1.85213024,3500.4,3500.3,3.77108045]
[1718955950928,2.4132,3501.5,3500.3,3.77108045]
[1718955951256,1.35744801,3500.4,3500.3,3.77108045]
[1718955951540,1.85213589,3500.4,3500.3,3.77108045]
[1718955951745,0.49468307,3500.4,3500.3,3.77108045]
[1718955952102,0.49468307,3501.4,3500.3,3.77108045]
[1718955952302,1.35744917,3500.4,3500.3,3.0]
[1718955952704,1.35744917,3500.4,3500.2,2.119]
[1718955953037,1.35744917,3500.3,3500.2,2.119]
[1718955953526,0.49468307,3500.3,3500.2,2.119]
[1718955953766,1.85213224,3500.3,3500.2,2.9309]
[1718955953970,1.35744917,3500.5,3500.2,5.9309]
[1718955954278,0.49467838,3500.4,3500.3,3.0]
[1718955954483,1.35744917,3500.5,3500.3,3.0]
[1718955954972,1.35744917,3500.4,3500.3,3.0]
[1718955955343,1.35744917,3500.4,3500.2,2.119]
[1718955956977,2.57258878,3500.3,3500.1,3.0]
[1718955957272,2.4328,3501.0,3500.1,3.0]
[1718955957273,0.49474541,3500.2,3500.1,3.0]
[1718955957468,0.49474541,3500.9,3500.1,3.0]
[1718955957679,2.07802884,3500.8,3500.1,3.0]
[1718955957835,2.57271674,3500.7,3500.1,3.0]
[1718955958159,2.57271674,3500.6,3500.1,3.0]
[1718955958466,2.7026252,3501.0,3500.1,3.0]
[1718955958467,2.57271674,3500.5,3500.1,3.0]
[1718955958643,2.57271674,3500.4,3500.1,3.0]
[1718955958965,0.27026252,3500.9,3500.1,3.0]
[1718955958966,4.89931674,3500.3,3500.1,3.0]
[1718955959266,2.57271674,3500.2,3500.0,3.0]
[1718955959473,4.651081,3500.1,3500.0,3.0]
[1718955959635,2.57271674,3500.1,3500.0,3.0]
[1718955959968,2.57281009,3500.1,3500.0,3.0]
[1718955960164,4.65110859,3500.1,3500.0,3.0]
[1718955960380,5.1410496,3500.1,3500.0,6.0]
[1718955960568,4.65104381,3500.1,3500.0,3.0]
[1718955960935,2.07797133,3500.1,3500.0,5.119]
[1718955961136,2.3714,3501.3,3500.0,10.4047]
[1718955961373,4.65010267,3501.2,3500.7,2.119]
[1718955961576,4.65010267,3501.1,3500.7,2.119]
[1718955961736,4.65010267,3501.0,3500.7,2.119]
[1718955961939,2.57240157,3500.9,3500.7,2.119]
[1718955962136,4.65006592,3500.8,3500.7,2.119]
[1718955963043,4.1553752,3500.8,3500.7,2.119]
[1718955963236,4.64997303,3500.8,3500.7,2.119]
[1718955964090,4.64997303,3500.8,3500.4,3.0]
[1718955964270,4.64997303,3500.7,3500.4,3.0]
[1718955964452,4.15530723,3500.6,3500.4,3.0]
[1718955964633,2.07771085,3500.5,3500.4,3.0]
[1718955964837,2.07771085,3501.1,3500.4,3.0]
[1718955965077,4.65003193,3501.0,3500.4,3.0]
[1718955965373,4.65003193,3500.9,3500.4,3.0]
[1718955965598,0.71248319,3501.0,3500.0,3.0]
[1718955965599,5.4798,3500.7,3500.0,3.0]
[1718955965773,7.1603548,3500.6,3500.0,3.0]
[1718955966076,4.65003193,3500.5,3500.0,3.0]
[1718955966289,5.16833799,3500.4,3500.0,3.0]
[1718955966462,4.15622178,3500.3,3500.0,3.0]
[1718955966666,4.0,3500.1,3500.0,3.0]
[1718955966881,10.97330533,3500.1,3500.0,3.0]
[1718955969392,8.39991085,3500.1,3500.0,3.0]
[1718955969561,11.46821606,3500.1,3500.0,3.0]
[1718955969756,9.14601606,3500.1,3500.0,3.0]
[1718955969978,9.14569008,3500.1,3500.0,3.0]
[1718955970689,9.14562216,3500.1,3500.0,3.0]
[1718955971580,9.14562216,3500.1,3500.0,6.0]
[1718955971951,9.14562216,3500.1,3500.0,8.719]
[1718955972157,4.4948932,3500.1,3500.0,8.719]
[1718955972422,4.4948932,3500.1,3500.0,6.6]
[1718955972588,7.06755259,3500.1,3500.0,6.0]
[1718955973294,9.55695259,3500.1,3500.0,3.0]
[1718955974977,9.0621882,3500.1,3500.0,3.0]
[1718955975187,9.55709749,3500.1,3500.0,3.0]
[1718955975493,10.51280724,3500.1,3500.0,3.0]
[1718955975821,13.51780724,3500.1,3500.0,3.0]
[1718955976099,13.02291404,3500.1,3500.0,3.0]
[1718955977487,13.57291404,3500.1,3500.0,3.0]
[1718955978073,13.07800475,3500.1,3500.0,3.0]
[1718955978274,14.06795533,3500.1,3500.0,3.0]
[1718955978502,13.57298103,3500.1,3500.0,3.0]
[1718955978665,14.0679503,3500.1,3500.0,3.0]
[1718955979400,14.06794735,3500.1,3500.0,3.0]
[1718955980004,13.51794735,3500.1,3500.0,3.0]
[1718955981163,13.51794887,3500.1,3500.0,3.0]
[1718955981794,14.06794887,3500.1,3500.0,3.0]
[1718955984173,13.57298103,3500.1,3500.0,3.0]
[1718955984416,14.06801517,3500.1,3500.0,3.0]
[1718955984584,30.99437817,3500.1,3499.2,0.1189747]
[1718955984913,3.005,3499.9,3499.2,0.1189747]
[1718955985209,7.005,3499.7,3499.2,0.1189747]
[1718955985419,3.005,3499.5,3499.2,0.1189747]
[1718955985720,3.005,3499.3,3499.2,0.1189747]
[1718955986009,10.50712914,3499.3,3499.2,0.1189747]
[1718955986504,11.05712914,3499.3,3499.2,0.1189747]
[1718955986728,13.20498114,3499.3,3499.2,0.1189747]
[1718955986884,11.05712914,3499.3,3499.2,0.1189747]
[1718955987085,12.16284205,3499.3,3499.2,0.1189747]
[1718955987297,3.005,3499.1,3497.5,7.37]
[1718955987492,3.005,3498.9,3497.5,7.37]
[1718955987684,3.005,3498.7,3497.5,7.37]
[1718955987889,2.077895,3498.6,3497.6,0.98675]
[1718955988072,2.57305693,3498.6,3497.6,0.98675]
[1718955988390,3.005,3498.7,3497.6,0.98675]
[1718955988391,2.57305693,3498.5,3497.6,0.98675]
[1718955988714,0.49512082,3498.4,3497.7,0.59623045]
[1718955988932,0.49512082,3498.6,3497.7,0.59623045]
[1718955989216,2.07945142,3498.5,3497.7,0.59623045]
[1718955989381,0.49512082,3498.4,3497.7,0.59623045]
[1718955989567,4.0,3498.2,3497.7,0.59623045]
[1718955989773,0.49512082,3498.1,3497.6,3.0]
[1718955990324,0.49515233,3498.1,3497.6,3.0]
[1718955990679,4.0,3498.0,3497.6,3.0]
[1718955990874,0.49515233,3497.9,3497.6,3.0]
[1718955991454,4.0,3498.0,3497.6,3.0]
[1718955991614,4.0,3498.0,3497.7,1.28675]
[1718955992827,3.005,3499.1,3497.5,3.0]
[1718955993023,2.57437101,3499.0,3497.4,2.4975]
[1718955993254,2.07929889,3498.9,3497.4,2.4975]
[1718955993559,0.49507756,3498.8,3497.4,2.4975]
[1718955993766,2.07929889,3498.7,3497.5,0.81685]
[1718955994051,0.49507756,3498.6,3497.5,3.81685]
[1718955994559,2.07934263,3498.5,3497.5,3.81685]
[1718955994729,0.55793765,3498.8,3497.5,3.81685]
[1718955994941,2.07941957,3498.7,3497.6,0.631435]
[1718955995128,0.49510564,3498.6,3497.6,0.631435]
[1718955995325,2.07941957,3498.5,3497.6,0.631435]
[1718955995529,0.49510564,3498.4,3497.6,0.631435]
[1718955995756,0.49510564,3498.4,3497.5,3.0]
[1718955995951,0.49510564,3498.7,3497.4,2.4975]
[1718955996165,2.07945817,3498.6,3497.4,2.4975]
[1718955996319,0.49510564,3498.5,3497.4,2.4975]
[1718955996515,2.07945817,3498.4,3497.4,2.4975]
[1718955996717,2.57461484,3498.3,3497.4,2.4975]
[1718955996916,2.07945817,3498.2,3497.4,2.4975]
[1718955997336,0.49515645,3498.1,3497.4,2.4975]
[1718955997742,0.99031312,3498.3,3497.4,2.4975]
[1718955997937,0.49515667,3498.3,3497.4,2.4975]
[1718955998146,0.49515667,3498.3,3497.5,0.75025]
[1718955998344,2.0795336,3498.2,3497.5,3.75025]
[1718955998530,0.49515645,3498.1,3497.5,3.75025]
[1718955998921,0.49515645,3498.2,3497.5,3.75025]
[1718955999140,0.49515667,3498.3,3497.5,3.75025]
[1718955999323,2.07952693,3498.2,3497.5,3.75025]
[1718955999720,2.07952693,3498.2,3497.1,7.37]
[1718955999721,0.9292,3498.0,3497.1,7.37]
[1718955999925,3.005,3497.8,3496.6,7.37]
[1718956000161,2.57497972,3497.7,3496.6,7.37]
[1718956000459,2.57497972,3497.6,3496.6,7.37]
[1718956000753,2.57497972,3497.5,3496.6,7.37]
[1718956000957,2.57497972,3497.4,3496.6,7.37]
[1718956001261,0.49512638,3497.3,3496.6,7.37]
[1718956001569,4.0,3497.2,3496.7,2.3705]
[1718956001919,2.07979772,3497.1,3496.7,5.3705]
[1718956002121,2.07979772,3497.0,3496.7,5.3705]
[1718956002320,2.07979772,3496.9,3496.7,2.3705]
[1718956002567,2.07979772,3496.8,3496.7,3.10805]
[1718956002779,2.07979772,3496.8,3496.7,3.0]
[1718956002921,2.07979772,3496.8,3496.6,3.0]
[1718956003267,2.07979772,3496.7,3496.5,2.3367]
[1718956003420,2.07979772,3496.6,3496.5,2.3367]
[1718956005252,2.07979772,3496.6,3496.1,5.3425]
[1718956005428,2.07979772,3496.5,3496.1,5.3425]
[1718956005623,2.07979772,3496.4,3496.1,5.3425]
[1718956005830,2.07979772,3496.3,3496.1,5.3425]
[1718956006023,2.07979772,3496.2,3496.1,5.3425]
[1718956006625,2.07979772,3496.2,3496.1,2.3425]
[1718956007276,2.07979772,3496.2,3496.0,0.006]
[1718956007449,0.4,3497.1,3496.0,0.006]
[1718956007450,2.07979772,3496.1,3496.0,0.006]
[1718956008175,2.07979772,3497.0,3496.0,0.006]
[1718956008478,3.22308484,3496.9,3496.0,0.006]
[1718956008638,2.57510507,3496.8,3496.0,0.006]
[1718956008843,2.07979772,3496.7,3496.0,0.006]
[1718956009154,0.64797977,3496.9,3496.0,0.006]
[1718956009155,2.57514416,3496.6,3496.0,0.006]
[1718956009359,0.9292,3496.4,3496.0,0.006]
[1718956009670,4.0,3496.1,3496.0,0.006]
[1718956009869,6.57521287,3496.1,3496.0,0.006]
[1718956010228,6.07979772,3496.1,3496.0,0.006]
[1718956012665,2.07979772,3496.1,3496.0,0.006]
[1718956012879,0.9292,3497.7,3496.2,2.28817]
[1718956013082,2.57528207,3497.6,3496.8,4.4112]
[1718956013380,2.57528207,3497.5,3496.9,3.0]
[1718956013600,2.57528207,3497.4,3496.9,3.0]
[1718956013762,2.08003005,3497.3,3496.9,3.0]
[1718956014145,3.005,3498.1,3496.9,3.0]
[1718956014341,3.01784929,3498.0,3496.9,3.0]
[1718956014536,2.57491362,3497.9,3496.9,3.0]
[1718956014786,2.57491362,3497.8,3496.9,3.0]
[1718956014932,2.57491202,3497.7,3496.9,2.005]
[1718956015289,2.0797341,3497.6,3496.9,5.005]
[1718956015460,2.0797341,3497.5,3496.9,5.005]
[1718956015631,2.0797341,3497.4,3496.9,5.88911145]
[1718956015833,0.44293567,3498.0,3496.9,3.88411145]
[1718956016165,2.0797125,3497.9,3496.9,5.005]
[1718956016330,0.49517586,3497.8,3496.9,5.005]
[1718956016532,2.0797125,3497.7,3496.9,5.005]
[1718956016983,0.49515667,3498.3,3496.9,7.29274]
[1718956017273,2.07951431,3498.2,3497.3,2.005]
[1718956017523,0.49511623,3498.1,3497.3,2.005]
[1718956017648,2.07951431,3498.0,3497.3,2.005]
[1718956017826,3.005,3498.9,3497.3,2.005]
[1718956018029,2.96783292,3498.8,3497.4,2.4209]
[1718956018349,2.57441292,3498.7,3497.7,2.005]
[1718956018540,2.57441292,3498.6,3497.4,5.4209]
[1718956018749,3.17169621,3498.5,3497.4,2.4209]
[1718956018979,2.57441292,3498.4,3497.4,2.4209]
[1718956019156,2.57441292,3498.3,3497.4,2.4209]
[1718956019358,2.57441292,3498.2,3497.3,3.0]
[1718956019569,2.57441292,3498.1,3497.3,3.0]
[1718956019786,2.57441292,3498.0,3497.2,7.37]
[1718956020071,2.83185421,3497.9,3496.7,19.65]
[1718956020277,2.57441292,3497.8,3496.7,19.65]
[1718956020567,2.57441292,3497.7,3496.7,19.65]
[1718956020776,2.57458597,3497.6,3496.7,19.65]
[1718956021090,3.005,3497.4,3496.1,2.4521]
[1718956021382,2.57458597,3497.3,3496.1,2.4521]
[1718956021531,2.57458597,3497.2,3496.1,2.4521]
[1718956021885,3.005,3497.4,3496.0,0.006]
[1718956021886,2.57458597,3497.1,3496.0,0.006]
[1718956022054,2.57458597,3497.0,3496.0,0.006]
[1718956022235,5.57958597,3496.9,3496.0,0.006]
[1718956022434,5.57958597,3496.8,3496.0,0.006]
[1718956022660,3.13254457,3496.7,3496.0,0.006]
[1718956022878,2.57458597,3496.6,3496.0,0.006]
[1718956023039,2.57458597,3496.5,3496.0,0.006]
[1718956023370,2.0793405,3496.4,3496.0,0.006]
[1718956023539,2.28727455,3496.3,3496.0,0.006]
[1718956023738,2.0793405,3496.2,3496.0,0.006]
[1718956024257,2.0793405,3496.1,3496.0,0.006]
[1718956024574,2.0793405,3497.0,3496.0,0.006]
[1718956024768,2.57470384,3496.9,3496.0,0.006]
[1718956024975,2.63731088,3496.8,3496.0,0.006]
[1718956025184,2.57470384,3496.7,3496.0,0.006]
[1718956025331,2.57470384,3496.6,3496.0,0.006]
[1718956025531,2.57470384,3496.5,3496.0,0.006]
[1718956025767,2.0793405,3496.4,3496.0,0.006]
[1718956025937,2.0793405,3496.3,3496.0,0.006]
[1718956026141,2.0793405,3496.2,3496.0,0.006]
[1718956026479,2.005,3498.1,3496.0,0.006]
[1718956026480,2.0793405,3496.1,3496.0,0.006]
[1718956027033,5.0843405,3496.8,3496.0,0.006]
[1718956027279,2.57474763,3496.7,3496.0,0.006]
[1718956027463,2.57474763,3496.6,3496.0,0.006]
[1718956027695,3.13272239,3496.5,3496.0,0.006]
[1718956027896,2.57474763,3496.4,3496.0,0.006]
[1718956028091,2.57474763,3496.3,3496.0,0.006]
[1718956028287,2.83222239,3496.2,3496.0,0.006]
[1718956028600,2.57474763,3496.1,3496.0,0.006]
[1718956029395,5.57974763,3496.1,3496.0,0.006]
[1718956029558,6.50905921,3496.1,3496.0,0.006]
[1718956030018,2.57485921,3496.1,3496.0,0.006]
[1718956030367,2.33682642,3496.1,3496.0,0.006]
[1718956030582,2.83223465,3496.1,3496.0,0.006]
[1718956031001,5.83723465,3496.1,3496.0,0.006]
[1718956031696,6.76643465,3496.1,3496.0,0.006]
[1718956032261,6.27102642,3496.1,3495.7,0.1189747]
[1718956032468,5.46999999,3495.9,3495.7,0.1189747]
[1718956032669,5.6343405,3495.8,3495.7,0.1189747]
[1718956032899,6.12996297,3495.8,3495.7,0.1189747]
[1718956033315,13.94049597,3495.8,3495.7,0.1189747]
[1718956033468,15.50298747,3495.8,3495.7,0.1189747]
[1718956034712,12.33565447,3495.8,3495.7,0.1189747]
[1718956034922,8.61565447,3495.8,3495.7,0.1189747]
[1718956035073,8.06565447,3495.8,3495.7,0.1189747]
[1718956035271,2.57499193,3495.8,3495.7,0.1189747]
[1718956035575,5.57985188,3495.8,3495.7,0.1189747]
[1718956036226,2.57485188,3495.8,3495.7,0.1189747]
[1718956037006,3.43371007,3495.8,3495.7,0.1189747]
[1718956037213,2.57485188,3495.8,3495.7,0.1189747]
[1718956037625,2.0793405,3495.8,3495.7,0.1189747]
[1718956038117,1.35436957,3496.3,3495.7,0.1189747]
[1718956038275,2.08064581,3496.2,3495.7,2.3846747]
[1718956038818,2.08064581,3496.1,3495.7,2.62314217]
[1718956038977,1.35480741,3496.5,3495.8,3.0]
[1718956039318,2.08042889,3496.4,3495.8,3.0]
[1718956039525,1.35480741,3496.8,3495.8,3.0]
[1718956039690,2.08034288,3496.7,3495.9,0.56231422]
[1718956040093,2.08022509,3496.6,3495.9,0.56231422]
[1718956040302,1.35480741,3497.2,3495.9,0.56231422]
[1718956040493,2.08014114,3497.1,3495.9,0.56231422]
[1718956040722,2.08014114,3497.1,3496.0,0.78219876]
[1718956041509,2.08014114,3497.0,3496.0,0.78219876]
[1718956041851,2.08014114,3496.9,3496.0,0.78219876]
[1718956041993,2.08014114,3496.8,3495.8,5.678]
[1718956042198,2.08014114,3496.7,3495.8,5.678]
[1718956042393,1.35531819,3497.1,3495.8,5.678]
[1718956042394,2.08014114,3496.6,3495.8,5.678]
[1718956042594,2.08014114,3496.5,3495.8,5.678]
[1718956042917,2.71054577,3497.1,3495.9,0.80626747]
[1718956043125,2.57556157,3497.0,3495.9,0.80626747]
[1718956043352,2.08023422,3496.9,3495.8,3.0]
[1718956043642,2.08023422,3496.9,3495.7,2.3846747]
[1718956043643,2.08023422,3496.8,3495.7,2.3846747]
[1718956044648,2.08023422,3496.7,3495.7,2.3846747]
[1718956044939,2.08023422,3496.6,3495.7,2.92314217]
[1718956045137,1.35537804,3496.2,3495.8,3.0]
[1718956045309,2.08023422,3496.1,3495.7,0.1189747]
[1718956045510,1.69893927,3496.0,3495.7,0.1189747]
[1718956045833,2.08023422,3495.9,3495.7,0.1189747]
[1718956046737,2.08023422,3495.8,3495.7,0.1189747]
[1718956046900,2.08023422,3496.2,3495.7,0.1189747]
[1718956047245,1.35537804,3495.9,3495.7,0.1189747]
[1718956047536,6.9360772,3495.8,3495.7,0.1189747]
[1718956047752,5.08523422,3495.8,3495.7,0.1189747]
[1718956047961,5.5807305,3495.8,3495.7,0.1189747]
[1718956050839,5.08523422,3495.8,3495.7,0.1189747]
[1718956051046,6.08926656,3495.8,3495.7,0.1189747]
[1718956051370,5.59375764,3495.8,3495.7,0.1189747]
[1718956051561,6.08925732,3495.8,3495.7,0.1189747]
[1718956051933,5.59375764,3495.8,3495.7,0.1189747]
[1718956052160,6.08928707,3495.8,3495.7,0.1189747]
[1718956052688,3.005,3495.6,3493.2,2.3827]
[1718956052962,2.6382,3495.7,3493.2,2.3827]
[1718956052963,4.35952456,3494.3,3493.2,2.3827]
[1718956053172,1.35452456,3494.1,3493.2,2.3827]
[1718956053396,1.35452456,3493.5,3493.2,2.3827]